bitfinex/quotes_SOLUSD_20251009
["timestamp","ask_amount","ask_price","bid_price","bid_amount"]
[1759969976971,10.87647521,228.7,228.68,0.1]
[1759969977164,45.67518649,228.69,228.68,0.1]
[1759969977347,46.39518649,228.69,228.68,0.1]
[1759969977853,46.39518649,228.69,228.65,0.2]
[1759969978068,2.01935564,228.66,228.65,0.2]
[1759969978367,37.27266098,228.66,228.65,0.2]
[1759969978549,37.99266098,228.66,228.65,0.2]
[1759969981354,35.97330534,228.66,228.65,0.2]
[1759969981561,37.99266098,228.66,228.65,0.2]
[1759969982076,48.86913619,228.66,228.65,1e-08]
[1759969982377,145.17647521,228.65,228.64,1e-08]
[1759969982674,147.19583085,228.65,228.64,1e-08]
[1759969982978,147.91583085,228.65,228.64,1e-08]
[1759969983653,152.28932746,228.65,228.64,1e-08]
[1759969984248,31.67647521,228.61,228.56,0.1]
[1759969984449,2.01935564,228.57,228.56,0.1]
[1759969984748,32.91935564,228.57,228.56,0.1]
[1759969984947,33.63935564,228.57,228.56,0.1]
[1759969985145,2.73935564,228.57,228.56,0.1]
[1759969985345,31.62,228.57,228.56,0.1]
[1759969985549,25.17541019,228.55,228.54,0.1]
[1759969985968,38.00476583,228.55,228.54,0.1]
[1759969987065,7.08476583,228.55,228.54,0.1]
[1759969987266,38.02476583,228.55,228.54,0.1]
[1759969987874,6.39476583,228.55,228.54,0.1]
[1759969988057,37.33476583,228.55,228.54,0.1]
[1759969988258,11.62733024,228.58,228.54,0.1]
[1759969988259,0.69,228.58,228.54,0.1]
[1759969988464,30.94,228.57,228.54,0.1]
[1759969988657,2.01935564,228.56,228.54,0.1]
[1759969988867,30.96,228.55,228.54,0.1]
[1759969989961,35.33541019,228.55,228.54,0.1]
[1759969990157,37.35476583,228.55,228.54,0.1]
[1759969990357,38.04476583,228.55,228.54,0.1]
[1759969990776,37.35476583,228.55,228.54,0.1]
[1759969991978,35.33541019,228.55,228.54,0.1]
[1759969992184,37.35476583,228.55,228.54,0.1]
[1759969992382,6.39476583,228.55,228.54,0.1]
[1759969992572,37.33476583,228.55,228.54,0.1]
[1759969994082,38.02476583,228.55,228.54,0.1]
[1759969995683,7.08476583,228.55,228.54,0.1]
[1759969996063,38.02476583,228.55,228.54,0.1]
[1759969998066,69.70124104,228.55,228.54,1e-08]
[1759969998266,17.96124104,228.55,228.54,1e-08]
[1759969998579,31.67647521,228.51,228.4,0.4]
[1759969998783,2.01935564,228.43,228.38,0.4]
[1759969999087,30.94,228.42,228.39,0.4]
[1759969999261,30.94,228.41,228.39,0.4]
[1759969999464,30.94,228.41,228.4,0.4]
[1759969999872,0.69,228.51,228.4,2.41935564]
[1759970000080,2.01935564,228.47,228.41,2.41935564]
[1759970000281,30.94,228.46,228.42,0.4]
[1759970000480,30.94,228.45,228.42,0.4]
[1759970000679,30.94,228.44,228.42,0.4]
[1759970000991,30.94,228.44,228.39,0.4]
[1759970001181,30.94,228.44,228.4,0.4]
[1759970001375,30.94,228.44,228.41,0.4]
[1759970001578,30.94,228.44,228.42,0.4]
[1759970001977,30.94,228.43,228.42,0.4]
[1759970002377,30.94,228.43,228.4,0.4]
[1759970002572,31.63,228.43,228.36,21.2]
[1759970002890,31.63,228.43,228.36,23.21935564]
[1759970002891,33.64935564,228.43,228.36,23.21935564]
[1759970003468,32.95935564,228.43,228.36,23.21935564]
[1759970003793,32.95935564,228.43,228.36,27.59832935]
[1759970003988,2.01935564,228.41,228.36,0.4]
[1759970004689,32.95935564,228.4,228.34,20.8]
[1759970004997,30.94,228.39,228.34,2.41935564]
[1759970005199,30.94,228.39,228.35,0.4]
[1759970005592,30.94,228.38,228.33,23.31935564]
[1759970005792,30.94,228.38,228.34,0.4]
[1759970006175,6.39770428,228.4,228.34,0.4]
[1759970006176,4.37834864,228.4,228.34,0.4]
[1759970006396,6.39770428,228.4,228.33,0.1]
[1759970006702,30.94,228.39,228.33,2.11935564]
[1759970006880,0.5,228.38,228.33,6.89893569]
[1759970007199,0.5,228.38,228.34,0.4]
[1759970007570,0.5,228.38,228.33,4.47958005]
[1759970007776,30.94,228.37,228.33,0.1]
[1759970007992,0.5,228.38,228.33,0.5]
[1759970008182,30.94,228.37,228.33,0.5]
[1759970008381,6.89803125,228.38,228.33,0.1]
[1759970008582,30.92,228.37,228.33,0.1]
[1759970008984,6.89803125,228.38,228.33,0.1]
[1759970009191,30.92,228.37,228.33,0.5]
[1759970011184,2.51935564,228.38,228.33,0.1]
[1759970011487,30.92,228.37,228.33,0.1]
[1759970011688,3.20935564,228.38,228.33,0.1]
[1759970011903,30.92,228.37,228.33,4.47962384]
[1759970012202,32.11,228.38,228.33,4.47962384]
[1759970012400,32.11,228.38,228.33,0.1]
[1759970012895,1.19,228.38,228.33,0.1]
[1759970013206,32.11,228.38,228.33,0.1]
[1759970013579,32.09,228.38,228.33,0.1]
[1759970013781,1.19,228.38,228.33,6.49897263]
[1759970013997,32.09,228.38,228.33,6.49897263]
[1759970014187,31.59,228.38,228.33,6.49897263]
[1759970014585,0.69,228.38,228.33,6.49897263]
[1759970014981,0.69,228.37,228.33,0.1]
[1759970015190,6.39787343,228.39,228.33,0.1]
[1759970015381,0.69,228.36,228.33,0.1]
[1759970016104,0.69,228.36,228.33,4.47958689]
[1759970016709,31.62,228.38,228.33,6.49894253]
[1759970016909,0.72,228.38,228.33,6.89894253]
[1759970017277,2.73935564,228.38,228.33,4.47958689]
[1759970017479,0.72,228.38,228.33,4.47958689]
[1759970017683,0.72,228.38,228.34,2.01935564]
[1759970017890,0.72,228.38,228.36,2.01935564]
[1759970018284,4.37809875,228.41,228.35,2.01935564]
[1759970018285,0.72,228.37,228.35,2.01935564]
[1759970019429,0.72,228.37,228.34,2.01935564]
[1759970021003,2.01935564,228.44,228.33,15.42860751]
[1759970021204,0.72,228.4,228.36,2.01935564]
[1759970021501,0.72,228.39,228.34,2.01935564]
[1759970021686,0.72,228.38,228.34,2.01935564]
[1759970022087,0.72,228.37,228.34,2.01935564]
[1759970022287,0.5,228.36,228.34,2.01935564]
[1759970022483,0.5,228.36,228.33,0.1]
[1759970022706,0.72,228.35,228.33,0.1]
[1759970022895,0.72,228.35,228.33,20.9]
[1759970023090,0.72,228.35,228.33,0.1]
[1759970023299,0.5,228.36,228.33,0.1]
[1759970023499,0.71,228.35,228.33,0.1]
[1759970023698,0.71,228.34,228.33,0.1]
[1759970024310,0.5,228.36,228.33,0.1]
[1759970024508,4.37854555,228.39,228.33,0.1]
[1759970024702,0.71,228.38,228.33,0.1]
[1759970024889,2.72935564,228.37,228.33,0.1]
[1759970025084,2.01935564,228.35,228.33,0.1]
[1759970025289,6.39849138,228.36,228.33,0.1]
[1759970025489,31.59,228.35,228.33,0.1]
[1759970025994,0.71,228.34,228.33,0.1]
[1759970026298,31.59,228.34,228.33,0.1]
[1759970027403,1.21,228.34,228.33,0.1]
[1759970027604,32.09,228.34,228.33,0.1]
[1759970030014,38.48878981,228.34,228.33,0.1]
[1759970030186,7.60878981,228.34,228.33,0.1]
[1759970030387,38.46878981,228.34,228.33,0.1]
[1759970030588,2.01935564,228.32,228.31,0.1]
[1759970030816,32.89935564,228.32,228.31,0.1]
[1759970031000,31.59,228.32,228.31,0.1]
[1759970031201,33.60935564,228.32,228.31,0.1]
[1759970031407,35.96981779,228.32,228.31,0.1]
[1759970031712,37.98917343,228.32,228.31,0.1]
[1759970032106,7.10917343,228.32,228.31,0.1]
[1759970032315,48.88564864,228.32,228.31,0.1]
[1759970032718,48.90564864,228.32,228.31,0.1]
[1759970032900,17.98564864,228.32,228.31,0.1]
[1759970033291,48.88564864,228.32,228.31,0.1]
[1759970033495,17.98564864,228.32,228.31,0.1]
[1759970033917,48.16405911,228.32,228.31,0.1]
[1759970034221,58.0875839,228.32,228.31,0.1]
[1759970034402,31.61,228.32,228.31,0.1]
[1759970034725,30.9,228.32,228.31,0.1]
[1759970034930,21.3,228.34,228.31,0.1]
[1759970035107,30.92,228.32,228.31,0.1]
[1759970035914,0.5,228.34,228.31,0.1]
[1759970036120,30.88,228.33,228.31,0.1]
[1759970037939,30.94,228.33,228.31,1.89776611]
[1759970038100,30.94,228.33,228.31,6.27773862]
[1759970039015,30.94,228.33,228.31,5.77773862]
[1759970039216,30.94,228.33,228.31,6.27773862]
[1759970039522,0.5,228.34,228.31,5.77773862]
[1759970040305,0.5,228.34,228.31,0.1]
[1759970041236,0.5,228.34,228.31,4.47995062]
[1759970041530,0.5,228.34,228.31,5.77771673]
[1759970042029,0.5,228.34,228.31,0.1]
[1759970042418,0.5,228.34,228.31,5.77776265]
[1759970042609,0.5,228.34,228.31,4.47999654]
[1759970042811,0.5,228.34,228.31,0.1]
[1759970043331,0.5,228.34,228.31,1.39776611]
[1759970044027,0.5,228.34,228.31,5.77773971]
[1759970044332,0.5,228.34,228.31,0.1]
[1759970044510,1.21,228.34,228.31,0.1]
[1759970044911,0.5,228.34,228.31,0.1]
[1759970045701,0.5,228.34,228.31,5.77776745]
[1759970045902,0.5,228.34,228.33,1.29776611]
[1759970046323,30.9,228.39,228.34,4.37943417]
[1759970046620,30.9,228.39,228.37,1.29776611]
[1759970047018,30.9,228.39,228.35,0.5]
[1759970047019,0.68,228.42,228.38,1.29776611]
[1759970047230,30.92,228.43,228.39,1.29776611]
[1759970047448,31.6,228.43,228.39,1.29776611]
[1759970047647,0.68,228.43,228.39,1.29776611]
[1759970047930,0.68,228.43,228.36,0.5]
[1759970047931,31.6,228.43,228.4,1.29776611]
[1759970049003,0.68,228.45,228.42,1.29776611]
[1759970049210,31.6,228.45,228.43,1.29776611]
[1759970049508,0.68,228.47,228.43,1.29776611]
[1759970049710,31.6,228.46,228.43,1.29776611]
[1759970051440,30.92,228.46,228.44,1.29776611]
[1759970051609,31.6,228.49,228.43,4.37769382]
[1759970051807,31.6,228.49,228.46,1.29776611]
[1759970052119,20.8,228.44,228.32,0.71]
[1759970052422,20.8,228.44,228.29,4.48022889]
[1759970052423,1.29776611,228.35,228.29,0.1]
[1759970052733,1.29776611,228.33,228.29,0.1]
[1759970052918,31.46,228.32,228.29,0.1]
[1759970053121,32.06,228.32,228.29,0.1]
[1759970056235,36.43981779,228.32,228.29,0.1]
[1759970057512,32.06,228.32,228.29,0.1]
[1759970057830,36.43981779,228.32,228.29,0.1]
[1759970059842,32.06,228.32,228.29,0.1]
[1759970060219,36.43981779,228.32,228.29,0.1]
[1759970060744,32.06,228.32,228.29,0.1]
[1759970061543,21.82295238,228.39,228.29,0.81]
[1759970061746,1.29776611,228.35,228.31,0.81]
[1759970061934,31.4,228.34,228.31,0.1]
[1759970062132,31.4,228.33,228.32,0.71]
[1759970063133,31.4,228.33,228.31,0.1]
[1759970063324,32.69776611,228.33,228.31,0.1]
[1759970063524,4.97981779,228.32,228.31,0.1]
[1759970067034,6.2775839,228.32,228.31,0.1]
[1759970068354,4.97981779,228.32,228.31,0.1]
[1759970071254,4.37981779,228.32,228.31,0.1]
[1759970072538,4.37866713,228.38,228.31,0.81]
[1759970073056,31.4,228.37,228.31,6.48774219]
[1759970073236,31.4,228.37,228.33,1.29776611]
[1759970073429,4.97727828,228.46,228.34,0.71]
[1759970073630,32.69776611,228.45,228.35,1.29776611]
[1759970073855,32.69776611,228.45,228.36,0.71]
[1759970074048,1.29776611,228.43,228.36,0.71]
[1759970074251,31.4,228.42,228.36,0.71]
[1759970074840,31.4,228.42,228.36,5.08904878]
[1759970075045,31.4,228.42,228.36,4.37904878]
[1759970075244,31.4,228.42,228.37,0.71]
[1759970076452,31.4,228.42,228.37,2.00776611]
[1759970076654,31.4,228.42,228.37,6.38660187]
[1759970076841,31.4,228.42,228.38,0.69]
[1759970077047,31.4,228.42,228.39,0.69]
[1759970077250,31.4,228.42,228.37,4.37883576]
[1759970077251,31.4,228.42,228.4,0.69]
[1759970077464,31.4,228.42,228.37,0.69]
[1759970077646,31.4,228.42,228.38,0.69]
[1759970077855,31.4,228.42,228.4,1.29776611]
[1759970078038,1.29776611,228.48,228.41,1.98776611]
[1759970078239,31.36,228.47,228.42,0.69]
[1759970078452,1.29776611,228.46,228.4,0.69]
[1759970078636,1.29776611,228.45,228.4,0.69]
[1759970078842,1.29776611,228.46,228.41,0.69]
[1759970079061,1.29776611,228.46,228.42,0.69]
[1759970079942,1.29776611,228.45,228.42,0.69]
[1759970080551,1.29776611,228.43,228.39,0.69]
[1759970080744,32.69776611,228.43,228.39,0.69]
[1759970081144,1.29776611,228.42,228.39,0.69]
[1759970081347,31.4,228.43,228.36,0.69]
[1759970081548,1.29776611,228.42,228.36,0.69]
[1759970083271,1.29776611,228.42,228.36,5.06904662]
[1759970083471,1.29776611,228.42,228.37,0.72]
[1759970083670,1.29776611,228.42,228.38,0.72]
[1759970083852,1.29776611,228.42,228.39,0.72]
[1759970084971,5.67567502,228.42,228.36,0.72]
[1759970086050,4.37790891,228.42,228.36,0.72]
[1759970086269,1.29776611,228.42,228.36,0.72]
[1759970086778,0.5,228.4,228.36,0.72]
[1759970087475,0.5,228.4,228.37,0.72]
[1759970088054,0.5,228.4,228.35,26.47700836]
[1759970088254,0.5,228.4,228.36,0.72]
[1759970088456,0.5,228.4,228.37,2.01776611]
[1759970088655,0.5,228.4,228.38,0.72]
[1759970089357,0.5,228.4,228.36,5.67669483]
[1759970089562,0.5,228.4,228.37,0.72]
[1759970089761,0.5,228.4,228.36,4.37892872]
[1759970089986,0.5,228.4,228.37,0.72]
[1759970090189,0.5,228.4,228.36,4.37892872]
[1759970090190,0.5,228.4,228.38,0.72]
[1759970091899,0.5,228.4,228.36,5.09892872]
[1759970092068,0.5,228.4,228.37,0.72]
[1759970092276,0.5,228.4,228.38,0.72]
[1759970092499,0.5,228.4,228.39,0.72]
[1759970093000,0.5,228.4,228.39,6.39624152]
[1759970093203,31.28,228.45,228.39,6.39624152]
[1759970093396,31.28,228.45,228.4,0.72]
[1759970093705,31.28,228.45,228.41,1.29776611]
[1759970093877,1.29776611,228.49,228.42,0.72]
[1759970094073,31.28,228.48,228.42,2.01776611]
[1759970094392,31.28,228.48,228.44,1.29776611]
[1759970094572,31.28,228.48,228.45,0.72]
[1759970094771,31.28,228.48,228.46,0.72]
[1759970094970,31.28,228.48,228.43,5.09754086]
[1759970096297,33.30412069,228.48,228.43,0.72]
[1759970096491,31.28,228.48,228.42,2.02412069]
[1759970096672,31.28,228.48,228.39,10.94618853]
[1759970096673,31.28,228.48,228.44,0.72]
[1759970096872,31.28,228.48,228.43,2.02412069]
[1759970097093,31.28,228.48,228.44,0.72]
[1759970097390,31.28,228.48,228.45,0.72]
[1759970098600,31.28,228.48,228.46,0.72]
[1759970099388,31.26,228.49,228.46,0.72]
[1759970099782,31.24,228.49,228.46,0.72]
[1759970100187,31.24,228.49,228.47,0.72]
[1759970100987,31.24,228.49,228.45,5.09730691]
[1759970101188,31.24,228.49,228.46,0.72]
[1759970101707,31.24,228.49,228.44,2.74412069]
[1759970101899,0.6,228.48,228.4,20.8]
[1759970102088,2.02412069,228.46,228.41,0.72]
[1759970102411,0.6,228.48,228.4,20.8]
[1759970102412,31.24,228.45,228.4,22.82412069]
[1759970102574,31.24,228.45,228.42,0.72]
[1759970102904,2.28533312,228.54,228.44,2.02412069]
[1759970103074,2.22412069,228.56,228.49,2.02412069]
[1759970103279,31.24,228.55,228.5,0.72]
[1759970103510,31.24,228.55,228.49,2.02412069]
[1759970103696,2.02412069,228.54,228.48,0.72]
[1759970104081,31.84,228.55,228.47,2.02412069]
[1759970104082,2.02412069,228.53,228.47,2.02412069]
[1759970104283,2.02412069,228.53,228.42,10.87647521]
[1759970104284,2.02412069,228.5,228.42,4.37790035]
[1759970104583,2.02412069,228.45,228.39,0.72]
[1759970104777,2.02412069,228.45,228.39,2.74412069]
[1759970104992,2.02412069,228.42,228.36,0.72]
[1759970105308,21.4,228.42,228.36,0.72]
[1759970105601,2.02412069,228.4,228.36,0.72]
[1759970105779,2.02412069,228.39,228.34,0.69]
[1759970105981,2.02412069,228.37,228.32,0.69]
[1759970106398,0.6,228.39,228.31,22.92412069]
[1759970106600,2.02412069,228.38,228.33,0.69]
[1759970107105,2.02412069,228.38,228.34,0.69]
[1759970107701,20.8,228.46,228.36,2.02412069]
[1759970107882,31.26,228.45,228.4,2.02412069]
[1759970108082,33.28412069,228.45,228.39,2.71412069]
[1759970108501,31.26,228.45,228.39,2.71412069]
[1759970108699,33.28412069,228.45,228.39,2.71412069]
[1759970108905,33.28412069,228.45,228.39,7.09257256]
[1759970109218,31.26,228.45,228.4,2.02412069]
[1759970109376,31.26,228.45,228.4,2.71412069]
[1759970109580,31.26,228.45,228.4,2.02412069]
[1759970109800,33.28412069,228.45,228.38,0.69]
[1759970109976,0.6,228.44,228.39,2.02412069]
[1759970110180,37.66149811,228.45,228.39,2.71412069]
[1759970110580,33.28412069,228.45,228.39,0.69]
[1759970110807,33.28412069,228.45,228.39,2.71412069]
[1759970110977,31.26,228.45,228.4,2.02412069]
[1759970111182,31.86,228.45,228.4,2.02412069]
[1759970111586,31.26,228.45,228.4,2.71412069]
[1759970112204,31.26,228.45,228.4,2.02412069]
[1759970112410,159.47659542,228.49,228.43,2.02412069]
[1759970112411,157.72412069,228.49,228.43,2.02412069]
[1759970112705,31.24,228.48,228.43,2.02412069]
[1759970113109,31.24,228.48,228.43,2.71412069]
[1759970113406,31.24,228.48,228.44,0.69]
[1759970113996,31.24,228.48,228.45,0.69]
[1759970114197,31.24,228.48,228.43,2.02412069]
[1759970114515,31.24,228.48,228.43,2.71412069]
[1759970114699,31.24,228.48,228.43,2.02412069]
[1759970114900,31.24,228.48,228.44,0.69]
[1759970115286,31.24,228.48,228.45,0.69]
[1759970115491,31.24,228.48,228.45,2.71412069]
[1759970115707,31.24,228.48,228.45,0.69]
[1759970117091,31.24,228.48,228.43,7.09181239]
[1759970117291,31.24,228.48,228.44,0.69]
[1759970118606,31.24,228.48,228.44,7.09153539]
[1759970119003,0.6,228.47,228.43,2.02412069]
[1759970119914,2.62412069,228.46,228.4,6.40240389]
[1759970120212,31.18,228.45,228.4,6.40240389]
[1759970120399,31.18,228.45,228.4,7.09240389]
[1759970120592,31.18,228.45,228.4,2.71412069]
[1759970121316,31.18,228.45,228.4,7.09238311]
[1759970121624,31.18,228.45,228.4,5.06826242]
[1759970121917,31.18,228.45,228.4,7.09238311]
[1759970122717,31.18,228.45,228.41,2.71412069]
[1759970122914,31.18,228.45,228.42,0.69]
[1759970124108,31.18,228.45,228.41,2.02412069]
[1759970124312,31.18,228.45,228.41,2.71412069]
[1759970124611,31.18,228.45,228.41,7.09221162]
[1759970125523,31.18,228.45,228.41,6.40221162]
[1759970125718,31.18,228.45,228.42,2.71412069]
[1759970125925,31.18,228.45,228.43,2.02412069]
[1759970126127,31.18,228.45,228.44,2.71412069]
[1759970127321,31.18,228.45,228.44,7.09163776]
[1759970128329,0.6,228.55,228.44,27.89163776]
[1759970128526,31.14,228.54,228.5,2.02412069]
[1759970128706,31.14,228.54,228.49,2.02412069]
[1759970129106,31.74,228.54,228.49,2.02412069]
[1759970129316,0.6,228.53,228.49,2.02412069]
[1759970129527,31.14,228.54,228.44,31.74379268]
[1759970129528,2.62412069,228.52,228.46,2.71412069]
[1759970129709,31.14,228.51,228.46,2.71412069]
[1759970129918,31.14,228.51,228.47,2.71412069]
[1759970130133,31.14,228.51,228.48,0.69]
[1759970130723,31.14,228.51,228.48,2.71412069]
[1759970131229,31.14,228.51,228.49,0.69]
[1759970131831,31.14,228.51,228.48,2.02412069]
[1759970132518,2.02412069,228.49,228.41,2.71412069]
[1759970132725,2.02412069,228.47,228.42,25.17790035]
[1759970132915,2.02412069,228.47,228.42,5.06790035]
[1759970133225,2.02412069,228.47,228.42,4.37790035]
[1759970133434,33.14412069,228.48,228.42,7.09202104]
[1759970133630,2.02412069,228.47,228.3,19.99999999]
[1759970133819,33.74412069,228.48,228.41,2.02412069]
[1759970134435,33.74412069,228.48,228.42,2.02412069]
[1759970134835,33.74412069,228.48,228.42,6.40188538]
[1759970135014,33.74412069,228.48,228.42,7.09188538]
[1759970137835,33.74412069,228.48,228.42,5.06776469]
[1759970138028,33.74412069,228.48,228.42,7.09188538]
[1759970141440,0.6,228.52,228.47,2.02412069]
[1759970141627,31.08,228.51,228.47,2.68412069]
[1759970142931,31.08,228.51,228.47,7.06098678]
[1759970143435,31.68,228.51,228.47,4.37686609]
[1759970144040,2.02412069,228.5,228.39,10.94589947]
[1759970144238,0.6,228.49,228.41,23.51412069]
[1759970144545,2.02412069,228.47,228.41,23.51412069]
[1759970144843,31.08,228.46,228.41,23.51412069]
[1759970145133,31.08,228.46,228.42,5.06790035]
[1759970145719,31.08,228.46,228.42,4.37790035]
[1759970145936,31.08,228.46,228.42,5.06790035]
[1759970146119,31.08,228.46,228.41,4.37809202]
[1759970146316,31.08,228.46,228.42,0.69]
[1759970146534,31.08,228.46,228.41,4.37809202]
[1759970146824,31.08,228.46,228.42,0.69]
[1759970147232,31.08,228.46,228.43,4.3777087]
[1759970148018,31.08,228.46,228.43,5.0677087]
[1759970149129,31.08,228.46,228.41,6.40212031]
[1759970149325,31.68,228.46,228.41,7.09212031]
[1759970149530,31.08,228.46,228.42,0.69]
[1759970150020,31.08,228.46,228.43,0.69]
[1759970150933,31.08,228.46,228.42,2.02412069]
[1759970151114,31.08,228.46,228.42,2.71412069]
[1759970151953,31.08,228.46,228.43,7.09182939]
[1759970152132,31.08,228.46,228.44,0.69]
[1759970152332,31.08,228.46,228.45,0.69]
[1759970152541,31.02,228.5,228.45,2.71412069]
[1759970152847,31.02,228.5,228.43,15.32198046]
[1759970152848,31.02,228.5,228.46,2.71412069]
[1759970153031,31.02,228.5,228.46,2.02412069]
[1759970153230,31.62,228.5,228.45,2.02412069]
[1759970153431,31.02,228.5,228.45,2.02412069]
[1759970153629,0.6,228.49,228.45,2.02412069]
[1759970153934,0.6,228.49,228.44,2.02412069]
[1759970154147,0.6,228.49,228.45,4.37732545]
[1759970154641,31.02,228.5,228.45,6.40144614]
[1759970154830,31.02,228.5,228.45,7.09144614]
[1759970155239,31.62,228.5,228.45,6.40144614]
[1759970155733,31.02,228.5,228.45,7.09144614]
[1759970156049,31.02,228.5,228.46,7.09116305]
[1759970156236,31.02,228.5,228.46,6.40116305]
[1759970156442,31.02,228.5,228.46,4.37704236]
[1759970156639,31.62,228.5,228.46,4.37704236]
[1759970157231,31.02,228.5,228.46,4.37704236]
[1759970157437,0.6,228.49,228.46,4.37704236]
[1759970158351,31.02,228.5,228.46,4.37704236]
[1759970158555,31.02,228.5,228.47,0.69]
[1759970158943,134.3,228.54,228.48,1.98516504]
[1759970159248,31.0,228.53,228.5,1.29516504]
[1759970159751,31.0,228.53,228.5,0.69]
[1759970160050,31.0,228.53,228.5,1.98516504]
[1759970160427,2.09516504,228.56,228.5,1.98516504]
[1759970160646,31.0,228.55,228.5,1.98516504]
[1759970160945,31.6,228.55,228.5,6.36152109]
[1759970161148,31.0,228.55,228.5,6.36152109]
[1759970161344,31.0,228.55,228.51,1.29516504]
[1759970161543,0.2,228.56,228.52,1.29516504]
[1759970161744,0.6,228.55,228.47,4.37686908]
[1759970161937,1.89516504,228.54,228.48,1.29516504]
[1759970162246,31.0,228.55,228.48,1.29516504]
[1759970162454,32.29516504,228.55,228.49,1.29516504]
[1759970163037,1.29516504,228.55,228.5,4.37636761]
[1759970163247,31.0,228.54,228.5,4.37636761]
[1759970164263,31.0,228.54,228.5,5.67153265]
[1759970164964,31.0,228.54,228.53,5.67095815]
[1759970165151,0.2,228.56,228.53,6.36095815]
[1759970165331,0.2,228.56,228.54,1.98516504]
[1759970166058,0.2,228.56,228.55,5.67057523]
[1759970167160,0.2,228.56,228.54,1.29516504]
[1759970167858,0.2,228.56,228.54,5.67070743]
[1759970168233,0.2,228.56,228.54,1.29516504]
[1759970168456,0.2,228.56,228.54,1.94516504]
[1759970169464,0.2,228.56,228.54,6.32069027]
[1759970169671,0.2,228.56,228.51,10.94026541]
[1759970169672,0.2,228.56,228.5,20.8]
[1759970169960,32.85516504,228.55,228.49,1.29516504]
[1759970170539,32.85516504,228.55,228.48,0.65]
[1759970170744,32.85516504,228.55,228.49,1.29516504]
[1759970171334,1.29516504,228.54,228.44,20.8]
[1759970171560,1.89516504,228.54,228.48,1.29516504]
[1759970172567,1.89516504,228.54,228.48,1.94516504]
[1759970173149,1.89516504,228.54,228.49,4.37655914]
[1759970173338,0.6,228.53,228.48,1.29516504]
[1759970173534,1.89516504,228.53,228.47,1.29516504]
[1759970173740,1.89516504,228.53,228.47,1.94516504]
[1759970174247,1.89516504,228.53,228.45,4.37732545]
[1759970174248,30.96,228.53,228.48,1.94516504]
[1759970174444,30.96,228.53,228.49,0.65]
[1759970174860,32.25516504,228.53,228.48,1.29516504]
[1759970175046,32.25516504,228.53,228.48,1.94516504]
[1759970175247,32.85516504,228.53,228.48,6.32173398]
[1759970175452,32.85516504,228.53,228.48,5.02656894]
[1759970177365,32.25516504,228.53,228.48,4.37656894]
[1759970177547,0.6,228.52,228.48,4.37656894]
[1759970177750,30.96,228.53,228.48,6.32173398]
[1759970177964,30.96,228.53,228.49,0.65]
[1759970178467,30.96,228.53,228.49,1.94516504]
[1759970179364,0.2,228.56,228.5,1.94516504]
[1759970179581,30.92,228.55,228.51,1.29516504]
[1759970179867,31.52,228.55,228.49,5.67168293]
[1759970180044,30.92,228.55,228.5,0.65]
[1759970180547,30.92,228.55,228.51,0.65]
[1759970180954,30.92,228.55,228.53,1.29516504]
[1759970181174,30.92,228.55,228.54,1.94516504]
[1759970181566,0.2,228.56,228.54,5.02560164]